[Event "FIDE Womens Grand Swiss 2021"]
[Site "Riga"]
[Date "2021.11.05"]
[Round "9.2"]
[White "Muzychuk, Mariya"]
[Black "Paehtz, Elisabeth"]
[Result "1-0"]
[ECO "C18"]
[WhiteElo "2536"]
[BlackElo "2475"]
[Annotator "ChessBase"]
[PlyCount "97"]
[EventDate "2021.10.27"]
[EventType "swiss"]
[EventCountry "LAT"]
[Tiebreak "Cut1 Buchholz+Sonneborn-Berger (Swiss)"]
[SourceTitle "playchess.com"]
[Source "ChessBase"]
[SourceQuality "1"]
[TimeControl "40/6000+30:20/3000+30:900+30"]

1. e4 {[%emt 0:10:03]} e6 {[%emt 0:10:03]} 2. d4 {[%emt 0:00:25]} d5 {[%emt 0:
00:05]} 3. Nc3 {[%emt 0:00:06]} Bb4 {[%emt 0:00:03]} 4. e5 {[%emt 0:00:32]} c5
{[%emt 0:00:04]} 5. a3 {[%emt 0:00:04]} Bxc3+ {[%emt 0:00:04]} 6. bxc3 {
[%emt 0:00:04]} Qa5 {[%emt 0:00:04]} 7. Bd2 {[%emt 0:00:37]} Qa4 {[%emt 0:00:
11]} 8. Qg4 {[%emt 0:01:11]} g6 {[%emt 0:00:20]} 9. Nf3 {[%emt 0:03:15]} Nc6 {
[%emt 0:04:53]} 10. Be2 {[%emt 0:01:44]} h6 {[%emt 0:09:00]} 11. O-O {[%emt 0:
25:00]} Qxc2 {[%emt 0:15:38]} 12. dxc5 {[%emt 0:01:00]} Nge7 {[%emt 0:04:01]}
13. Bb5 {[%emt 0:04:05]} a6 {[%emt 0:08:08]} 14. Ba4 {[%emt 0:12:19]} Qe4 {
[%emt 0:07:54]} 15. Qxe4 {[%emt 0:01:46]} dxe4 {[%emt 0:00:04]} 16. Nd4 {
[%emt 0:00:21]} Bd7 {[%emt 0:00:09]} 17. Bc2 {[%emt 0:00:20]} Nxe5 {[%emt 0:01:
48]} 18. Bxe4 {[%emt 0:00:10]} O-O-O {[%emt 0:12:52]} 19. Bf4 {[%emt 0:04:34]}
N5c6 {[%emt 0:00:05]} 20. Bd6 {[%emt 0:02:39]} Nd5 {[%emt 0:08:46]} 21. Nxc6 {
[%emt 0:06:14]} Bxc6 {[%emt 0:00:25]} 22. c4 {[%emt 0:00:47]} Nc3 {[%emt 0:01:
16]} 23. Bxc6 {[%emt 0:02:08]} bxc6 {[%emt 0:00:03]} 24. Rfe1 {[%emt 0:09:28]}
Na4 {[%emt 0:08:47]} 25. Rab1 {[%emt 0:02:59]} Rxd6 {[%emt 0:00:04]} 26. cxd6 {
[%emt 0:00:05]} c5 {[%emt 0:00:03]} 27. Rb3 {[%emt 0:03:22]} Rd8 {[%emt 0:00:
22]} 28. Rd1 {[%emt 0:00:09]} h5 {[%emt 0:00:36]} 29. f4 {[%emt 0:00:26]} Rd7 {
[%emt 0:00:44]} 30. Kf2 {[%emt 0:00:47]} Ra7 {[%emt 0:00:06]} 31. d7+ {[%emt 0:
08:30]} Rxd7 {[%emt 0:00:02]} 32. Rb8+ {[%emt 0:00:25]} Kc7 {[%emt 0:00:03]}
33. Rb7+ {[%emt 0:00:12]} Kxb7 {[%emt 0:00:01]} 34. Rxd7+ {[%emt 0:00:04]} Kc6
{[%emt 0:00:41]} 35. Rxf7 {[%emt 0:00:07]} Nb2 {[%emt 0:00:09]} 36. Rf6 {
[%emt 0:00:32]} Kd7 {[%emt 0:00:09]} 37. Rxg6 {[%emt 0:01:07]} Nxc4 {[%emt 0:
00:03]} 38. f5 {[%emt 0:01:15]} exf5 {[%emt 0:00:08]} 39. Rxa6 {[%emt 0:00:10]}
Nd6 {[%emt 0:00:11]} 40. Ke3 {[%emt 0:02:10]} Ke6 {[%emt 0:00:06]} 41. a4 {
[%emt 0:52:55]} Kd5 {[%emt 0:51:26]} 42. a5 {[%emt 0:03:31]} Nc4+ {[%emt 0:01:
01]} 43. Kd3 {[%emt 0:03:18]} h4 {[%emt 0:00:38]} 44. h3 {[%emt 0:00:00]} Nb2+
{[%emt 0:00:00]} 45. Kc2 {[%emt 0:00:00]} Nc4 {[%emt 0:00:00]} 46. Kc3 {
[%emt 0:00:00]} f4 {[%emt 0:00:00]} 47. Ra8 {[%emt 0:00:00]} Ne3 {[%emt 0:00:
00]} 48. a6 {[%emt 0:00:00]} Kc6 {[%emt 0:00:00]} 49. Rb8 {[%emt 0:00:00]} 1-0

[Event "FIDE Womens Grand Swiss 2021"]
[Site "Riga"]
[Date "2021.11.05"]
[Round "9.3"]
[White "Zhu, Jiner"]
[Black "Pogonina, Natalija"]
[Result "1-0"]
[ECO "C99"]
[WhiteElo "2455"]
[BlackElo "2467"]
[Annotator "ChessBase"]
[PlyCount "93"]
[EventDate "2021.10.27"]
[EventType "swiss"]
[EventCountry "LAT"]
[Tiebreak "Cut1 Buchholz+Sonneborn-Berger (Swiss)"]
[SourceTitle "playchess.com"]
[Source "ChessBase"]
[SourceQuality "1"]
[TimeControl "40/6000+30:20/3000+30:900+30"]

1. e4 {[%emt 0:10:03]} e5 {[%emt 0:10:04]} 2. Nf3 {[%emt 0:00:04]} Nc6 {
[%emt 0:00:04]} 3. Bb5 {[%emt 0:00:06]} a6 {[%emt 0:00:10]} 4. Ba4 {[%emt 0:00:
05]} Nf6 {[%emt 0:00:05]} 5. O-O {[%emt 0:00:09]} Be7 {[%emt 0:00:14]} 6. Re1 {
[%emt 0:00:10]} b5 {[%emt 0:00:11]} 7. Bb3 {[%emt 0:00:06]} d6 {[%emt 0:00:18]}
8. c3 {[%emt 0:00:09]} O-O {[%emt 0:00:20]} 9. h3 {[%emt 0:00:08]} Na5 {
[%emt 0:00:48]} 10. Bc2 {[%emt 0:00:11]} c5 {[%emt 0:00:11]} 11. d4 {[%emt 0:
00:41]} Qc7 {[%emt 0:00:14]} 12. Nbd2 {[%emt 0:03:56]} cxd4 {[%emt 0:00:46]}
13. cxd4 {[%emt 0:00:06]} Nc6 {[%emt 0:00:26]} 14. Nb3 {[%emt 0:00:19]} a5 {
[%emt 0:01:02]} 15. Be3 {[%emt 0:06:45]} a4 {[%emt 0:00:14]} 16. Nbd2 {[%emt 0:
00:06]} Bd7 {[%emt 0:00:18]} 17. a3 {[%emt 0:07:19]} Rfc8 {[%emt 0:07:42]} 18.
Bd3 {[%emt 0:00:33]} Qb7 {[%emt 0:02:00]} 19. Qe2 {[%emt 0:05:43]} Rab8 {
[%emt 0:04:20]} 20. Rac1 {[%emt 0:03:52]} exd4 {[%emt 0:03:05]} 21. Nxd4 {
[%emt 0:00:22]} Ne5 {[%emt 0:02:01]} 22. Bb1 {[%emt 0:09:51]} h6 {[%emt 0:19:
08]} 23. f4 {[%emt 0:09:58]} Ng6 {[%emt 0:11:13]} 24. e5 {[%emt 0:08:20]} Rxc1
{[%emt 0:14:40]} 25. Rxc1 {[%emt 0:00:08]} Nd5 {[%emt 0:00:43]} 26. e6 {
[%emt 0:14:27]} Ngxf4 {[%emt 0:07:11]} 27. exf7+ {[%emt 0:07:03]} Kf8 {[%emt 0:
01:33]} 28. Bxf4 {[%emt 0:00:30]} Nxf4 {[%emt 0:00:07]} 29. Qf2 {[%emt 0:02:13]
} g5 {[%emt 0:02:47]} 30. Kh2 {[%emt 0:17:34]} Bf6 {[%emt 0:07:20]} 31. N2f3 {
[%emt 0:00:00]} Rc8 {[%emt 0:06:58]} 32. Rd1 {[%emt 0:00:01]} Qd5 {[%emt 0:00:
30]} 33. Qd2 {[%emt 0:00:47]} Qxf7 {[%emt 0:00:30]} 34. g3 {[%emt 0:00:30]} Ng6
{[%emt 0:00:30]} 35. Qb4 {[%emt 0:00:30]} Kg7 {[%emt 0:00:30]} 36. Qxd6 {
[%emt 0:00:30]} Rd8 {[%emt 0:00:30]} 37. Bxg6 {[%emt 0:00:30]} Qxg6 {[%emt 0:
00:30]} 38. Ne5 {[%emt 0:00:30]} Bxe5 {[%emt 0:00:30]} 39. Qxe5+ {[%emt 0:00:
30]} Kg8 {[%emt 0:00:30]} 40. Qd5+ {[%emt 0:20:20]} Kh7 {[%emt 0:09:42]} 41.
Ne6 {[%emt 0:15:02]} Bxe6 {[%emt 0:34:39]} 42. Qxd8 {[%emt 0:00:07]} Qf7 {
[%emt 0:00:30]} 43. Qd3+ {[%emt 0:00:30]} Bf5 {[%emt 0:00:30]} 44. Rf1 {
[%emt 0:00:30]} Kg6 {[%emt 0:00:30]} 45. Qd6+ {[%emt 0:00:30]} Kh7 {[%emt 0:00:
30]} 46. Qe5 {[%emt 0:00:30]} Kg6 {[%emt 0:00:30]} 47. g4 {[%emt 0:00:30]} 1-0

[Event "FIDE Womens Grand Swiss 2021"]
[Site "Riga"]
[Date "2021.11.05"]
[Round "9.5"]
[White "Kashlinskaya, Alina"]
[Black "Harika, Dronavalli"]
[Result "0-1"]
[ECO "D15"]
[WhiteElo "2493"]
[BlackElo "2511"]
[Annotator "ChessBase"]
[PlyCount "166"]
[EventDate "2021.10.27"]
[EventType "swiss"]
[EventCountry "LAT"]
[Tiebreak "Cut1 Buchholz+Sonneborn-Berger (Swiss)"]
[SourceTitle "playchess.com"]
[Source "ChessBase"]
[SourceQuality "1"]
[TimeControl "40/6000+30:20/3000+30:900+30"]

1. d4 {[%emt 0:10:04]} d5 {[%emt 0:10:42]} 2. c4 {[%emt 0:00:04]} c6 {[%emt 0:
00:09]} 3. Nf3 {[%emt 0:00:06]} Nf6 {[%emt 0:00:07]} 4. Nc3 {[%emt 0:00:06]} a6
{[%emt 0:00:04]} 5. c5 {[%emt 0:00:07]} g6 {[%emt 0:04:50]} 6. h3 {[%emt 0:01:
21]} Bg7 {[%emt 0:01:23]} 7. Bf4 {[%emt 0:00:12]} Nbd7 {[%emt 0:02:39]} 8. e3 {
[%emt 0:01:21]} O-O {[%emt 0:00:25]} 9. Bd3 {[%emt 0:00:51]} Nh5 {[%emt 0:04:
13]} 10. Bh2 {[%emt 0:00:41]} Re8 {[%emt 0:00:36]} 11. g4 {[%emt 0:06:09]} Nhf6
{[%emt 0:00:31]} 12. Qc2 {[%emt 0:01:35]} Nf8 {[%emt 0:03:39]} 13. O-O-O {
[%emt 0:08:01]} N6d7 {[%emt 0:07:26]} 14. Kb1 {[%emt 0:03:02]} a5 {[%emt 0:05:
12]} 15. Na4 {[%emt 0:04:23]} Ra7 {[%emt 0:09:15]} 16. Qb3 {[%emt 0:06:22]} e5
{[%emt 0:05:24]} 17. Nxe5 {[%emt 0:01:58]} Nxe5 {[%emt 0:00:25]} 18. Bxe5 {
[%emt 0:01:49]} Bxe5 {[%emt 0:00:04]} 19. dxe5 {[%emt 0:00:06]} Rxe5 {[%emt 0:
00:04]} 20. Qb6 {[%emt 0:16:30]} Qxb6 {[%emt 0:01:02]} 21. Nxb6 {[%emt 0:00:44]
} Re8 {[%emt 0:02:47]} 22. a4 {[%emt 0:13:33]} Nd7 {[%emt 0:03:13]} 23. Rc1 {
[%emt 0:00:21]} Kf8 {[%emt 0:01:21]} 24. Ka2 {[%emt 0:01:12]} Ke7 {[%emt 0:02:
51]} 25. Ka3 {[%emt 0:05:19]} Nxb6 {[%emt 0:05:50]} 26. cxb6 {[%emt 0:00:05]}
Ra8 {[%emt 0:00:02]} 27. Rc5 {[%emt 0:01:05]} Kd6 {[%emt 0:00:26]} 28. Rhc1 {
[%emt 0:00:16]} f5 {[%emt 0:01:53]} 29. gxf5 {[%emt 0:11:43]} Bxf5 {[%emt 0:00:
34]} 30. Bxf5 {[%emt 0:04:12]} gxf5 {[%emt 0:00:05]} 31. R5c3 {[%emt 0:00:02]}
Ra6 {[%emt 0:03:35]} 32. Rb3 {[%emt 0:00:07]} Rg8 {[%emt 0:00:31]} 33. Rd1 {
[%emt 0:00:40]} Kc5 {[%emt 0:06:31]} 34. Rc1+ {[%emt 0:00:26]} Kd6 {[%emt 0:00:
05]} 35. Rd1 {[%emt 0:00:02]} Rg2 {[%emt 0:12:45]} 36. Rd4 {[%emt 0:00:15]}
Rxf2 {[%emt 0:01:32]} 37. Rh4 {[%emt 0:00:10]} Kc5 {[%emt 0:02:53]} 38. Rh6 {
[%emt 0:10:22]} Rc2 {[%emt 0:00:35]} 39. Rxh7 {[%emt 0:02:42]} Rxb6 {[%emt 0:
00:12]} 40. Rxb7 {[%emt 0:00:16]} Rxb7 {[%emt 0:05:34]} 41. Rxb7 {[%emt 0:50:
12]} Re2 {[%emt 0:52:38]} 42. Rb3 {[%emt 0:00:00]} Rh2 {[%emt 0:00:00]} 43.
Rc3+ {[%emt 0:00:00]} Kd6 {[%emt 0:00:00]} 44. b4 {[%emt 0:00:00]} Rxh3 {
[%emt 0:00:00]} 45. Kb3 {[%emt 0:00:00]} axb4 {[%emt 0:00:00]} 46. Kxb4 {
[%emt 0:00:00]} Rh8 {[%emt 0:00:00]} 47. a5 {[%emt 0:00:00]} Rb8+ {[%emt 0:00:
00]} 48. Ka4 {[%emt 0:00:00]} Rb1 {[%emt 0:00:00]} 49. Ra3 {[%emt 0:00:00]} Kc7
{[%emt 0:00:00]} 50. Ra2 {[%emt 0:00:00]} Re1 {[%emt 0:00:00]} 51. Ra3 {
[%emt 0:00:00]} f4 {[%emt 0:00:00]} 52. exf4 {[%emt 0:00:00]} Re4+ {[%emt 0:00:
00]} 53. Kb3 {[%emt 0:00:00]} Rxf4 {[%emt 0:00:00]} 54. Ra1 {[%emt 0:00:00]}
Rf3+ {[%emt 0:03:23]} 55. Kb4 {[%emt 0:00:00]} Rf4+ {[%emt 0:00:36]} 56. Kb3 {
[%emt 0:00:00]} Kb7 {[%emt 0:05:42]} 57. a6+ {[%emt 0:04:41]} Ka7 {[%emt 0:00:
09]} 58. Kc3 {[%emt 0:00:31]} Rc4+ {[%emt 0:00:44]} 59. Kd3 {[%emt 0:01:55]}
Rb4 {[%emt 0:01:18]} 60. Rc1 {[%emt 0:01:36]} Kb6 {[%emt 0:00:21]} 61. Ra1 {
[%emt 0:15:43]} Ka7 {[%emt 0:15:05]} 62. Rc1 {[%emt 0:00:02]} Rb6 {[%emt 0:00:
08]} 63. Kd4 {[%emt 0:00:08]} Rxa6 {[%emt 0:00:28]} 64. Kc5 {[%emt 0:01:07]}
Ra4 {[%emt 0:00:37]} 65. Rc2 {[%emt 0:02:32]} Kb7 {[%emt 0:00:12]} 66. Kd6 {
[%emt 0:00:10]} Rc4 {[%emt 0:00:07]} 67. Rb2+ {[%emt 0:00:03]} Ka6 {[%emt 0:00:
12]} 68. Ke5 {[%emt 0:00:06]} Ka5 {[%emt 0:00:09]} 69. Rb8 {[%emt 0:00:06]} Ka4
{[%emt 0:00:21]} 70. Rb6 {[%emt 0:00:09]} Ka5 {[%emt 0:01:42]} 71. Rb8 {
[%emt 0:00:04]} Rb4 {[%emt 0:00:32]} 72. Rc8 {[%emt 0:00:47]} Kb5 {[%emt 0:00:
32]} 73. Kd6 {[%emt 0:00:55]} d4 {[%emt 0:01:19]} 74. Ke5 {[%emt 0:00:46]} Kc5
{[%emt 0:00:15]} 75. Ra8 {[%emt 0:00:50]} Kc4 {[%emt 0:00:40]} 76. Ke4 {
[%emt 0:00:16]} c5 {[%emt 0:00:12]} 77. Ra3 {[%emt 0:00:09]} Rb3 {[%emt 0:00:
27]} 78. Ra4+ {[%emt 0:00:02]} Kc3 {[%emt 0:00:41]} 79. Kd5 {[%emt 0:00:02]} d3
{[%emt 0:00:21]} 80. Kxc5 {[%emt 0:00:18]} d2 {[%emt 0:00:08]} 81. Rc4+ {
[%emt 0:00:02]} Kb2 {[%emt 0:00:08]} 82. Rd4 {[%emt 0:00:03]} Kc2 {[%emt 0:00:
09]} 83. Kc4 {[%emt 0:00:03]} Rb8 {[%emt 0:00:22]} 0-1

[Event "FIDE Womens Grand Swiss 2021"]
[Site "Riga"]
[Date "2021.11.05"]
[Round "9.6"]
[White "Batsiashvili, Nino"]
[Black "Cori T., Deysi"]
[Result "1/2-1/2"]
[ECO "E70"]
[WhiteElo "2484"]
[BlackElo "2382"]
[Annotator "RC"]
[PlyCount "161"]
[EventDate "2021.10.27"]
[EventType "swiss"]
[EventCountry "LAT"]
[Tiebreak "Cut1 Buchholz+Sonneborn-Berger (Swiss)"]
[SourceTitle "playchess.com"]
[Source "ChessBase"]
[SourceQuality "1"]
[TimeControl "40/6000+30:20/3000+30:900+30"]

1. d4 {[%emt 0:10:03]} Nf6 {[%emt 0:10:30]} 2. c4 {[%emt 0:00:04]} g6 {[%emt 0:
00:34]} 3. Nc3 {[%emt 0:00:07]} Bg7 {[%emt 0:00:17]} 4. e4 {[%emt 0:00:19]} d6
{[%emt 0:00:14]} 5. h3 {[%emt 0:00:07]} Nbd7 {[%emt 0:01:57]} 6. Bd3 {[%emt 0:
13:54]} e5 {[%emt 0:03:17]} 7. d5 {[%emt 0:00:06]} O-O {[%emt 0:01:46]} 8. Nge2
{[%emt 0:04:32]} a5 {[%emt 0:22:32]} 9. g4 {[%emt 0:07:29]} Nc5 {[%emt 0:03:30]
} 10. Bc2 {[%emt 0:12:35]} h5 {[%emt 0:19:37]} 11. Bg5 {[%emt 0:06:05]} hxg4 {
[%emt 0:03:45]} 12. hxg4 {[%emt 0:00:11]} Bxg4 {[%emt 0:00:55]} 13. Qd2 {
[%emt 0:00:37]} Qd7 {[%emt 0:03:24]} 14. O-O-O {[%emt 0:04:56]} Bf3 {[%emt 0:
10:42]} 15. Rh4 {[%emt 0:02:44]} Ng4 {[%emt 0:00:02]} 16. Rg1 {[%emt 0:02:38]}
f6 {[%emt 0:09:22]} 17. Be3 {[%emt 0:00:05]} Kf7 {[%emt 0:04:30]} 18. Bxc5 {
[%emt 0:03:10]} dxc5 {[%emt 0:00:01]} 19. Qd3 {[%emt 0:01:58]} Bxe2 {[%emt 0:
02:59]} 20. Nxe2 {[%emt 0:01:20]} Nh6 {[%emt 0:00:31]} 21. f4 {[%emt 0:02:22]}
Qe7 {[%emt 0:04:53]} 22. Qg3 {[%emt 0:09:09]} g5 {[%emt 0:00:09]} 23. Rh5 {
[%emt 0:00:25]} exf4 {[%emt 0:05:29]} 24. Nxf4 {[%emt 0:00:48]} Qe5 {[%emt 0:
00:49]} 25. Ne6 {[%emt 0:00:16]} Qxg3 26. Rxg3 {[%emt 0:00:02]} Rh8 {[%emt 0:
00:58]} 27. Nxc7 {[%emt 0:04:53]} Kg6 {[%emt 0:00:37]} 28. Rh1 {[%emt 0:01:27]}
Nf7 {[%emt 0:00:32]} 29. Rf1 {[%emt 0:05:55]} Ne5 {[%emt 0:00:33]} 30. Nxa8 {
[%emt 0:00:08]} Rxa8 {[%emt 0:00:00]} 31. Rb3 {[%emt 0:02:26]} g4 {[%emt 0:00:
02]} 32. Rxb7 {[%emt 0:02:47]} Bh6+ {[%emt 0:00:04]} 33. Kd1 {[%emt 0:00:19]}
Be3 {[%emt 0:00:28]} 34. Ke2 {[%emt 0:06:40]} Bd4 {[%emt 0:00:32]} 35. Rh1 {
[%emt 0:00:05]} Kg5 {[%emt 0:01:22]} 36. Rg7+ {[%emt 0:01:40]} Kf4 {[%emt 0:00:
01]} 37. b3 {[%emt 0:01:55]} Nf3 {[%emt 0:00:41]} 38. d6 {[%emt 0:01:39]} Rd8 {
[%emt 0:01:23]} 39. d7 {[%emt 0:00:02]} g3 {[%emt 0:00:19]} 40. e5 {[%emt 0:01:
35]} Ng5 {[%emt 0:00:40]} 41. exf6 {[%emt 0:24:59]} Kg4 {[%emt 0:33:21]} 42.
Rh6 {[%emt 0:16:42]} g2 {[%emt 0:00:23]} 43. Rhg6 {[%emt 0:00:54]} g1=N+ {
[%emt 0:08:08]} 44. Kf1 {[%emt 0:00:07]} N1f3 {[%emt 0:05:22]} 45. Bd1 {
[%emt 0:00:06]} Kf5 {[%emt 0:03:52]} 46. Bxf3 {[%emt 0:01:40]} Nxf3 {[%emt 0:
00:02]} 47. Rh6 {[%emt 0:05:43]} Ng5 {[%emt 0:01:07]} 48. Re7 {[%emt 0:03:15]}
Bxf6 {[%emt 0:00:02]} 49. Re8 {[%emt 0:00:11]} Rxd7 {[%emt 0:00:14]} 50. Rf8 {
[%emt 0:00:09]} Ne4 {[%emt 0:01:48]} 51. Ke2 {[%emt 0:01:13]} Rg7 {[%emt 0:00:
33]} 52. Rh5+ {[%emt 0:01:09]} Kg6 {[%emt 0:00:29]} 53. Rh3 {[%emt 0:00:33]}
Rd7 {[%emt 0:00:17]} 54. Ke3 {[%emt 0:01:19]} Rd4 {[%emt 0:00:11]} 55. Rg8+ {
[%emt 0:01:12]} Kf5 {[%emt 0:00:01]} 56. Rf3+ {[%emt 0:00:37]} Ke6 {[%emt 0:00:
41]} 57. Re8+ {[%emt 0:00:38]} Be7 {[%emt 0:00:01]} 58. Ke2 {[%emt 0:00:45]}
Rd2+ {[%emt 0:01:36]} 59. Ke3 {[%emt 0:00:07]} Rd4 {[%emt 0:00:04]} 60. Ke2 {
[%emt 0:00:18]} Kd7 {[%emt 0:00:26]} 61. Ra8 {[%emt 0:15:03]} Rd2+ {[%emt 0:16:
45]} 62. Ke3 {[%emt 0:00:21]} Rd4 {[%emt 0:00:01]} 63. Ke2 {[%emt 0:00:23]}
Rd2+ {[%emt 0:00:58]} 64. Ke3 {[%emt 0:00:50]} Rd4 {[%emt 0:00:08]} 65. Rxa5 {
[%emt 0:01:12]} Bg5+ {[%emt 0:00:17]} 66. Ke2 {[%emt 0:00:00]} Rd2+ {[%emt 0:
00:08]} 67. Kf1 {[%emt 0:00:08]} Rb2 {[%emt 0:01:20]} 68. Kg1 {[%emt 0:01:03]}
Ke6 {[%emt 0:00:19]} 69. Ra8 {[%emt 0:00:55]} Ke5 {[%emt 0:00:43]} 70. a4 {
[%emt 0:00:01]} Kd4 {[%emt 0:00:19]} 71. a5 {[%emt 0:01:03]} Be3+ {[%emt 0:00:
32]} 72. Kh1 {[%emt 0:00:03]} Rb1+ {[%emt 0:00:38]} 73. Kh2 {[%emt 0:00:05]}
Rb2+ {[%emt 0:00:01]} 74. Kh1 {[%emt 0:00:04]} Rb1+ {[%emt 0:01:10]} 75. Kh2 {
[%emt 0:00:03]} Rb2+ {[%emt 0:00:07]} 76. Kh1 {[%emt 0:00:03]} Nf2+ {[%emt 0:
00:47]} 77. Kg2 {[%emt 0:00:24]} Ne4+ {[%emt 0:00:28]} 78. Kh1 {[%emt 0:00:02]}
Nf2+ {[%emt 0:00:38]} 79. Kg2 {[%emt 0:00:02]} Ne4+ {[%emt 0:00:24]} 80. Kh1 {
[%emt 0:00:01]} Rb1+ {[%emt 0:00:39]} 81. Kh2 {[%emt 0:00:11]} 1/2-1/2

[Event "FIDE Womens Grand Swiss 2021"]
[Site "Riga"]
[Date "2021.11.05"]
[Round "9.7"]
[White "Badelka, Olga"]
[Black "Javakhishvili, Lela"]
[Result "0-1"]
[ECO "B43"]
[WhiteElo "2438"]
[BlackElo "2446"]
[Annotator "NA"]
[PlyCount "102"]
[EventDate "2021.10.27"]
[EventType "swiss"]
[EventCountry "LAT"]
[Tiebreak "Cut1 Buchholz+Sonneborn-Berger (Swiss)"]
[SourceTitle "playchess.com"]
[Source "ChessBase"]
[SourceQuality "1"]
[TimeControl "40/6000+30:20/3000+30:900+30"]

1. e4 {[%emt 0:10:04]} c5 {[%emt 0:10:15]} 2. Nf3 {[%emt 0:00:14]} e6 {[%emt 0:
00:06]} 3. d4 {[%emt 0:00:15]} cxd4 {[%emt 0:00:07]} 4. Nxd4 {[%emt 0:00:05]}
a6 {[%emt 0:00:05]} 5. Nc3 {[%emt 0:00:21]} b5 {[%emt 0:01:46]} 6. Bd3 {
[%emt 0:00:23]} Bb7 {[%emt 0:00:06]} 7. O-O {[%emt 0:00:30]} Nc6 {[%emt 0:00:
25]} 8. Nxc6 {[%emt 0:00:43]} Bxc6 {[%emt 0:00:05]} 9. Re1 {[%emt 0:01:13]} Ne7
{[%emt 0:00:07]} 10. Qh5 {[%emt 0:08:04]} Ng6 {[%emt 0:00:24]} 11. Bg5 {
[%emt 0:14:24]} Qb8 {[%emt 0:01:29]} 12. e5 {[%emt 0:11:04]} Nxe5 {[%emt 0:28:
31]} 13. Bf4 {[%emt 0:00:26]} d6 {[%emt 0:05:41]} 14. Bxe5 {[%emt 0:01:59]}
dxe5 {[%emt 0:00:25]} 15. Rxe5 {[%emt 0:00:14]} Bd7 {[%emt 0:00:21]} 16. Rae1 {
[%emt 0:07:08]} g6 {[%emt 0:12:49]} 17. Qh4 {[%emt 0:30:39]} Bg7 {[%emt 0:05:
35]} 18. R5e3 {[%emt 0:00:34]} O-O {[%emt 0:02:57]} 19. Rh3 {[%emt 0:06:13]} h6
{[%emt 0:00:09]} 20. Rg3 {[%emt 0:00:33]} Qd8 {[%emt 0:01:31]} 21. Qe4 {
[%emt 0:00:28]} Rc8 {[%emt 0:02:47]} 22. Ne2 {[%emt 0:03:56]} Bc6 {[%emt 0:03:
50]} 23. Qe3 {[%emt 0:00:11]} Qf6 {[%emt 0:04:26]} 24. b3 {[%emt 0:02:37]} e5 {
[%emt 0:01:09]} 25. Be4 {[%emt 0:03:45]} Bxe4 {[%emt 0:04:20]} 26. Qxe4 {
[%emt 0:00:03]} Qc6 {[%emt 0:00:29]} 27. Qxc6 {[%emt 0:00:33]} Rxc6 {[%emt 0:
00:02]} 28. c4 {[%emt 0:00:35]} e4 {[%emt 0:03:28]} 29. cxb5 {[%emt 0:01:54]}
axb5 {[%emt 0:00:06]} 30. Re3 {[%emt 0:00:19]} f5 {[%emt 0:02:19]} 31. f3 {
[%emt 0:00:29]} exf3 {[%emt 0:00:10]} 32. Rxf3 {[%emt 0:01:19]} Re8 {[%emt 0:
02:42]} 33. Kf1 {[%emt 0:00:14]} Rce6 {[%emt 0:01:44]} 34. Rd3 {[%emt 0:01:55]}
Bf8 {[%emt 0:01:57]} 35. Rd4 {[%emt 0:03:13]} Bc5 {[%emt 0:00:34]} 36. Rd2 {
[%emt 0:00:49]} Bb4 {[%emt 0:00:20]} 37. Red1 {[%emt 0:00:03]} Bxd2 {[%emt 0:
00:07]} 38. Rxd2 {[%emt 0:00:02]} g5 {[%emt 0:02:12]} 39. Nc3 {[%emt 0:00:34]}
Re5 {[%emt 0:01:03]} 40. a4 {[%emt 0:01:07]} bxa4 {[%emt 0:01:17]} 41. bxa4 {
[%emt 0:50:04]} Rc8 {[%emt 0:51:25]} 42. Nd5 {[%emt 0:00:00]} Rc4 {[%emt 0:00:
00]} 43. a5 {[%emt 0:00:00]} Ra4 {[%emt 0:00:00]} 44. h4 {[%emt 0:00:00]} Rxa5
{[%emt 0:00:00]} 45. Nf6+ {[%emt 0:00:00]} Kf7 {[%emt 0:00:00]} 46. hxg5 {
[%emt 0:00:00]} hxg5 {[%emt 0:00:00]} 47. Nh5 {[%emt 0:00:00]} Ra4 {[%emt 0:00:
00]} 48. Kg1 {[%emt 0:00:00]} Re1+ {[%emt 0:00:00]} 49. Kf2 {[%emt 0:00:00]}
Rea1 {[%emt 0:00:00]} 50. Rd7+ {[%emt 0:00:00]} Kg6 {[%emt 0:00:00]} 51. Ng3 {
[%emt 0:00:00]} Rf4+ {[%emt 0:00:00]} 0-1

[Event "FIDE Womens Grand Swiss 2021"]
[Site "Riga"]
[Date "2021.11.05"]
[Round "9.8"]
[White "Saduakassova, Dinara"]
[Black "Osmak, Iulija"]
[Result "1/2-1/2"]
[ECO "D02"]
[WhiteElo "2491"]
[BlackElo "2423"]
[Annotator "RC"]
[PlyCount "81"]
[EventDate "2021.10.27"]
[EventType "swiss"]
[EventCountry "LAT"]
[Tiebreak "Cut1 Buchholz+Sonneborn-Berger (Swiss)"]
[SourceTitle "playchess.com"]
[Source "ChessBase"]
[SourceQuality "1"]
[TimeControl "40/6000+30:20/3000+30:900+30"]

1. d4 {[%emt 0:10:13]} Nf6 {[%emt 0:11:45]} 2. Nf3 {[%emt 0:00:05]} e6 {
[%emt 0:00:31]} 3. Bf4 {[%emt 0:00:38]} d5 {[%emt 0:00:49]} 4. e3 {[%emt 0:00:
31]} Bd6 {[%emt 0:00:24]} 5. Nbd2 {[%emt 0:00:56]} O-O {[%emt 0:01:32]} 6. c3 {
[%emt 0:01:02]} c5 {[%emt 0:01:46]} 7. Ne5 {[%emt 0:03:12]} Qc7 {[%emt 0:08:48]
} 8. h4 {[%emt 0:14:48]} Nbd7 {[%emt 0:05:52]} 9. Ndf3 {[%emt 0:02:37]} Ne4 {
[%emt 0:10:11]} 10. Bd3 {[%emt 0:00:30]} cxd4 {[%emt 0:02:00]} 11. exd4 {
[%emt 0:08:20]} f6 {[%emt 0:01:49]} 12. Nxd7 {[%emt 0:01:23]} Bxd7 {[%emt 0:00:
12]} 13. Bxd6 {[%emt 0:01:15]} Qxd6 {[%emt 0:00:16]} 14. h5 {[%emt 0:04:49]} h6
{[%emt 0:07:04]} 15. Rh4 {[%emt 0:02:53]} Bc6 {[%emt 0:01:02]} 16. Nd2 {
[%emt 0:04:17]} Nxd2 {[%emt 0:07:24]} 17. Qxd2 {[%emt 0:00:11]} e5 {[%emt 0:00:
18]} 18. dxe5 {[%emt 0:11:02]} fxe5 {[%emt 0:14:45]} 19. O-O-O {[%emt 0:02:46]}
Qf6 {[%emt 0:03:55]} 20. Rg4 {[%emt 0:00:51]} e4 {[%emt 0:00:20]} 21. Rg6 {
[%emt 0:01:58]} Qe5 {[%emt 0:01:51]} 22. Bc2 {[%emt 0:05:19]} Qxh5 {[%emt 0:00:
19]} 23. Rg3 {[%emt 0:00:09]} Qh4 {[%emt 0:05:30]} 24. Bb3 {[%emt 0:01:16]}
Rad8 {[%emt 0:00:18]} 25. Qd4 {[%emt 0:06:32]} Qf6 {[%emt 0:01:39]} 26. Qxe4 {
[%emt 0:04:23]} Qxf2 {[%emt 0:00:08]} 27. Rf3 {[%emt 0:07:59]} Rxf3 {[%emt 0:
08:16]} 28. gxf3 {[%emt 0:00:17]} Qc5 {[%emt 0:06:34]} 29. Qe6+ {[%emt 0:04:28]
} Kh8 {[%emt 0:00:05]} 30. Bc2 {[%emt 0:03:32]} Qd6 {[%emt 0:02:25]} 31. Qf5 {
[%emt 0:01:05]} g6 {[%emt 0:00:23]} 32. Qg4 {[%emt 0:04:11]} Kh7 {[%emt 0:02:
31]} 33. Rg1 {[%emt 0:00:16]} Rg8 {[%emt 0:00:12]} 34. f4 {[%emt 0:01:49]} Qf6
{[%emt 0:02:49]} 35. Re1 {[%emt 0:01:06]} Re8 {[%emt 0:01:43]} 36. Rg1 {
[%emt 0:00:08]} Rg8 {[%emt 0:00:27]} 37. Re1 {[%emt 0:00:15]} Re8 {[%emt 0:02:
23]} 38. Rg1 {[%emt 0:00:07]} Rg8 {[%emt 0:00:14]} 39. Re1 {[%emt 0:02:13]} Re8
{[%emt 0:00:54]} 40. Rg1 {[%emt 0:00:09]} Rg8 {[%emt 0:00:25]} 41. Re1 {
[%emt 0:11:42]} 1/2-1/2